[Event "*** Titled Tuesday Blitz"]
[Site "Chess.com"]
[Date "2020.05.05"]
[Round "4"]
[White "Mikhail_Biryukov"]
[Black "Antipov_Mikhail_Al"]
[Result "1-0"]
[WhiteElo "2694"]
[BlackElo "2859"]
[TimeControl "180+1"]
[EndTime "10:40:43 PDT"]
[Termination "Mikhail_Biryukov won by resignation"]

1. e4 {[%clk 0:03:00.9]} 1... e5 {[%clk 0:02:59.9]} 2. Nf3 {[%clk 0:03:00.4]}
2... Nc6 {[%clk 0:03:00]} 3. d4 {[%clk 0:02:59.9]} 3... exd4 {[%clk 0:02:59.9]}
4. Nxd4 {[%clk 0:03:00.8]} 4... Nf6 {[%clk 0:03:00.5]} 5. Nc3 {[%clk 0:03:00.5]}
5... Bb4 {[%clk 0:03:00.4]} 6. Nxc6 {[%clk 0:03:00.9]} 6... bxc6 {[%clk
0:03:01.3]} 7. Bd3 {[%clk 0:03:01]} 7... d5 {[%clk 0:03:01.8]} 8. exd5 {[%clk
0:03:01.9]} 8... cxd5 {[%clk 0:03:02.7]} 9. O-O {[%clk 0:03:02]} 9... O-O {[%clk
0:03:03.1]} 10. Bg5 {[%clk 0:03:02.6]} 10... c6 {[%clk 0:03:03.4]} 11. Na4
{[%clk 0:03:03.1]} 11... h6 {[%clk 0:03:01.2]} 12. Bh4 {[%clk 0:03:02.7]} 12...
Be7 {[%clk 0:02:58.5]} 13. c4 {[%clk 0:03:01.7]} 13... Be6 {[%clk 0:02:49.3]}
14. Qc2 {[%clk 0:02:59.9]} 14... Rc8 {[%clk 0:02:26.9]} 15. Rad1 {[%clk
0:02:53]} 15... Qa5 {[%clk 0:02:16.6]} 16. Rfe1 {[%clk 0:02:42.1]} 16... Rfe8
{[%clk 0:02:09.8]} 17. b3 {[%clk 0:02:34.4]} 17... Rcd8 {[%clk 0:01:57.1]} 18.
cxd5 {[%clk 0:01:55]} 18... Bxd5 {[%clk 0:01:40.6]} 19. f3 {[%clk 0:01:49.2]}
19... Bb4 {[%clk 0:01:13.3]} 20. Rxe8+ {[%clk 0:01:46.9]} 20... Rxe8 {[%clk
0:01:14.2]} 21. Bxf6 {[%clk 0:01:28.3]} 21... gxf6 {[%clk 0:01:15.1]} 22. Bc4
{[%clk 0:01:28.4]} 22... Bd6 {[%clk 0:00:38]} 23. Qd2 {[%clk 0:01:18.4]} 23...
Qxd2 {[%clk 0:00:33.9]} 24. Rxd2 {[%clk 0:01:18.3]} 24... Bf4 {[%clk 0:00:30.8]}
25. Rc2 {[%clk 0:01:13.8]} 25... Re1+ {[%clk 0:00:21.9]} 26. Kf2 {[%clk
0:01:13.6]} 26... Rh1 {[%clk 0:00:20.4]} 27. h3 {[%clk 0:01:10.2]} 27... h5
{[%clk 0:00:20.5]} 28. Nc3 {[%clk 0:00:43.5]} 28... Bxc4 {[%clk 0:00:17.6]} 29.
bxc4 {[%clk 0:00:44.4]} 29... h4 {[%clk 0:00:14.4]} 30. Ne2 {[%clk 0:00:44.4]}
30... Bc7 {[%clk 0:00:11.7]} 31. f4 {[%clk 0:00:42.1]} 31... Rd1 {[%clk
0:00:04.5]} 32. a3 {[%clk 0:00:35.2]} 32... f5 {[%clk 0:00:04.7]} 33. Ke3 {[%clk
0:00:30.9]} 33... Bb6+ {[%clk 0:00:03.9]} 34. c5 {[%clk 0:00:31.1]} 34... Bc7
{[%clk 0:00:03.1]} 35. Rd2 {[%clk 0:00:26.2]} 35... Re1 {[%clk 0:00:02.4]} 36.
Rd7 {[%clk 0:00:24.2]} 36... Bxf4+ {[%clk 0:00:02.5]} 37. Kf2 {[%clk 0:00:24.5]}
37... Bg3+ {[%clk 0:00:02.7]} 38. Nxg3 {[%clk 0:00:24.6]} 38... hxg3+ {[%clk
0:00:03.6]} 39. Kxe1 {[%clk 0:00:25]} 1-0

[Event "*** Titled Tuesday Blitz"]
[Site "Chess.com"]
[Date "2020.05.05"]
[Round "4"]
[White "Karina_Ivanova"]
[Black "witcher8"]
[Result "1-0"]
[WhiteElo "2172"]
[BlackElo "2467"]
[TimeControl "180+1"]
[EndTime "10:40:43 PDT"]
[Termination "Karina_Ivanova won on time"]

1. Nf3 {[%clk 0:02:50.7]} 1... Nf6 {[%clk 0:02:58.7]} 2. g3 {[%clk 0:02:49.7]}
2... g6 {[%clk 0:02:58.6]} 3. Bg2 {[%clk 0:02:49.5]} 3... Bg7 {[%clk 0:02:57.9]}
4. O-O {[%clk 0:02:49.9]} 4... O-O {[%clk 0:02:54.3]} 5. d4 {[%clk 0:02:49.8]}
5... d6 {[%clk 0:02:54.1]} 6. c4 {[%clk 0:02:49.7]} 6... Nc6 {[%clk 0:02:53.8]}
7. Nc3 {[%clk 0:02:49.6]} 7... a6 {[%clk 0:02:50.2]} 8. Qd3 {[%clk 0:02:47]}
8... e5 {[%clk 0:02:33.9]} 9. d5 {[%clk 0:02:45.1]} 9... Nb4 {[%clk 0:02:13.7]}
10. Qb1 {[%clk 0:02:38]} 10... a5 {[%clk 0:01:59.7]} 11. a3 {[%clk 0:02:35.9]}
11... Na6 {[%clk 0:01:59.2]} 12. b4 {[%clk 0:02:35.6]} 12... Bd7 {[%clk
0:01:01.1]} 13. Ne1 {[%clk 0:02:08.3]} 13... e4 {[%clk 0:00:49.8]} 14. Bd2
{[%clk 0:02:00.8]} 14... axb4 {[%clk 0:00:48.4]} 15. axb4 {[%clk 0:01:59.4]}
15... Re8 {[%clk 0:00:47.7]} 16. Ra3 {[%clk 0:01:47.5]} 16... Bf5 {[%clk
0:00:40.3]} 17. e3 {[%clk 0:01:45.5]} 17... h5 {[%clk 0:00:39.1]} 18. h4 {[%clk
0:01:43.2]} 18... c6 {[%clk 0:00:33.6]} 19. dxc6 {[%clk 0:01:38.1]} 19... bxc6
{[%clk 0:00:32.5]} 20. Nc2 {[%clk 0:01:31.8]} 20... c5 {[%clk 0:00:15.6]} 21. b5
{[%clk 0:01:24.2]} 21... Nc7 {[%clk 0:00:15.7]} 22. Rxa8 {[%clk 0:01:21.1]}
22... Qxa8 {[%clk 0:00:16.6]} 23. b6 {[%clk 0:01:17.6]} 23... Na6 {[%clk
0:00:16.7]} 24. Nb5 {[%clk 0:01:15.1]} 24... Qc6 {[%clk 0:00:16.6]} 25. Ba5
{[%clk 0:01:10.8]} 25... d5 {[%clk 0:00:10.8]} 26. cxd5 {[%clk 0:01:04.3]} 26...
Nxd5 {[%clk 0:00:11.7]} 27. Rc1 {[%clk 0:00:57.8]} 27... Rd8 {[%clk 0:00:07.3]}
28. Ncd4 {[%clk 0:00:56]} 28... Qd7 {[%clk 0:00:06.3]} 29. Nxf5 {[%clk
0:00:54.3]} 29... gxf5 {[%clk 0:00:07.2]} 30. Nc7 {[%clk 0:00:36.9]} 30... Ndxc7
{[%clk 0:00:05.8]} 31. bxc7 {[%clk 0:00:34.9]} 31... Rc8 {[%clk 0:00:06.2]} 32.
Qb7 {[%clk 0:00:29.6]} 32... Nb4 {[%clk 0:00:06.2]} 33. Rxc5 {[%clk 0:00:24.8]}
33... Nd3 {[%clk 0:00:02.4]} 34. Rd5 {[%clk 0:00:22.6]} 34... Qe6 {[%clk
0:00:01.8]} 35. Qb8 {[%clk 0:00:18]} 35... Kh7 {[%clk 0:00:01.1]} 36. Qb7 {[%clk
0:00:16.7]} 1-0

[Event "*** Titled Tuesday Blitz"]
[Site "Chess.com"]
[Date "2020.05.05"]
[Round "4"]
[White "boasovietica"]
[Black "EvgenyRomanov"]
[Result "0-1"]
[WhiteElo "2465"]
[BlackElo "2649"]
[TimeControl "180+1"]
[EndTime "10:40:44 PDT"]
[Termination "EvgenyRomanov won by resignation"]

1. e4 {[%clk 0:03:00.9]} 1... e6 {[%clk 0:02:59.3]} 2. Qe2 {[%clk 0:02:56.7]}
2... d5 {[%clk 0:03:00.2]} 3. exd5 {[%clk 0:02:56.9]} 3... Qxd5 {[%clk 0:02:58]}
4. Nf3 {[%clk 0:02:56.8]} 4... Nf6 {[%clk 0:02:55.5]} 5. g3 {[%clk 0:02:53.6]}
5... c5 {[%clk 0:02:50.9]} 6. Bg2 {[%clk 0:02:53.3]} 6... Nc6 {[%clk 0:02:50.4]}
7. O-O {[%clk 0:02:53.7]} 7... Qd8 {[%clk 0:02:48.1]} 8. Nc3 {[%clk 0:02:43.5]}
8... Be7 {[%clk 0:02:46.5]} 9. d3 {[%clk 0:02:39.7]} 9... O-O {[%clk 0:02:45.5]}
10. Bd2 {[%clk 0:02:22.6]} 10... Nd4 {[%clk 0:02:33]} 11. Nxd4 {[%clk
0:02:21.4]} 11... cxd4 {[%clk 0:02:33.9]} 12. Ne4 {[%clk 0:02:17.8]} 12... Nd5
{[%clk 0:02:33.1]} 13. c4 {[%clk 0:01:54.8]} 13... dxc3 {[%clk 0:02:31.4]} 14.
bxc3 {[%clk 0:01:49.9]} 14... Bd7 {[%clk 0:02:28.2]} 15. c4 {[%clk 0:01:36.8]}
15... Nc7 {[%clk 0:02:25.3]} 16. Bc3 {[%clk 0:01:33.4]} 16... Rc8 {[%clk
0:02:22]} 17. Rab1 {[%clk 0:01:20.6]} 17... b5 {[%clk 0:02:18.8]} 18. Rfd1
{[%clk 0:01:00.9]} 18... Qe8 {[%clk 0:02:12.1]} 19. h4 {[%clk 0:00:56.5]} 19...
Bc6 {[%clk 0:02:08.5]} 20. Qg4 {[%clk 0:00:54.6]} 20... f6 {[%clk 0:01:57.9]}
21. cxb5 {[%clk 0:00:51.6]} 21... Bxb5 {[%clk 0:01:50.9]} 22. h5 {[%clk
0:00:46.8]} 22... h6 {[%clk 0:01:41.3]} 23. a4 {[%clk 0:00:33.4]} 23... Bxa4
{[%clk 0:01:28.8]} 24. Rdc1 {[%clk 0:00:33.5]} 24... Bd7 {[%clk 0:01:24.7]} 25.
Ba5 {[%clk 0:00:20.4]} 25... Nd5 {[%clk 0:01:20.6]} 26. Rxc8 {[%clk 0:00:18.9]}
26... Bxc8 {[%clk 0:01:17.6]} 27. Nc3 {[%clk 0:00:16.5]} 27... f5 {[%clk
0:01:02.9]} 28. Qc4 {[%clk 0:00:14.3]} 28... Nf6 {[%clk 0:00:56.4]} 29. Rb8
{[%clk 0:00:12]} 29... Bd6 {[%clk 0:00:46.8]} 30. Ra8 {[%clk 0:00:10.9]} 30...
Qd7 {[%clk 0:00:46]} 31. Bc6 {[%clk 0:00:10.2]} 31... Qe7 {[%clk 0:00:42.2]} 32.
Bf3 {[%clk 0:00:09.4]} 32... Bd7 {[%clk 0:00:39.1]} 33. Rxa7 {[%clk 0:00:09.2]}
33... Rc8 {[%clk 0:00:33.2]} 34. Qxc8+ {[%clk 0:00:08.3]} 34... Bxc8 {[%clk
0:00:33]} 35. Rxe7 {[%clk 0:00:08.8]} 35... Bxe7 {[%clk 0:00:33.9]} 36. d4
{[%clk 0:00:07.2]} 36... Bd7 {[%clk 0:00:33.4]} 37. d5 {[%clk 0:00:07.3]} 37...
e5 {[%clk 0:00:33.1]} 38. Bc7 {[%clk 0:00:06.3]} 38... e4 {[%clk 0:00:32.8]} 39.
Be2 {[%clk 0:00:06.6]} 39... Ne8 {[%clk 0:00:30.5]} 40. Be5 {[%clk 0:00:06]}
40... Bf6 {[%clk 0:00:29.5]} 41. Bf4 {[%clk 0:00:06.4]} 41... Bxc3 {[%clk
0:00:29]} 0-1

[Event "*** Titled Tuesday Blitz"]
[Site "Chess.com"]
[Date "2020.05.05"]
[Round "4"]
[White "Andrei_Belozerov"]
[Black "Gerasimenyuk_Miha"]
[Result "0-1"]
[WhiteElo "2574"]
[BlackElo "2362"]
[TimeControl "180+1"]
[EndTime "10:40:44 PDT"]
[Termination "Gerasimenyuk_Miha won by resignation"]

1. e4 {[%clk 0:03:00]} 1... c6 {[%clk 0:03:00.1]} 2. d4 {[%clk 0:02:59.4]} 2...
d5 {[%clk 0:03:01]} 3. Nd2 {[%clk 0:02:59.1]} 3... dxe4 {[%clk 0:03:01.1]} 4.
Nxe4 {[%clk 0:02:58.7]} 4... Nf6 {[%clk 0:03:02]} 5. Nxf6+ {[%clk 0:02:58.2]}
5... gxf6 {[%clk 0:03:02.9]} 6. Nf3 {[%clk 0:02:57.2]} 6... h5 {[%clk
0:03:02.4]} 7. Be2 {[%clk 0:02:56.2]} 7... Nd7 {[%clk 0:03:00.3]} 8. O-O {[%clk
0:02:55.2]} 8... Nb6 {[%clk 0:02:59.7]} 9. c4 {[%clk 0:02:53.9]} 9... h4 {[%clk
0:02:59.9]} 10. Be3 {[%clk 0:02:52.2]} 10... Bg4 {[%clk 0:02:57.8]} 11. Nd2
{[%clk 0:02:45.5]} 11... Bxe2 {[%clk 0:02:52.9]} 12. Qxe2 {[%clk 0:02:44.7]}
12... Qd7 {[%clk 0:02:52.9]} 13. a4 {[%clk 0:02:36.6]} 13... Rg8 {[%clk
0:02:40.2]} 14. a5 {[%clk 0:02:31.2]} 14... Nc8 {[%clk 0:02:40]} 15. Ne4 {[%clk
0:02:23.5]} 15... Nd6 {[%clk 0:02:37.5]} 16. f3 {[%clk 0:02:13.6]} 16... Nxe4
{[%clk 0:02:35.5]} 17. fxe4 {[%clk 0:02:13.3]} 17... O-O-O {[%clk 0:02:32.2]}
18. d5 {[%clk 0:02:12.5]} 18... a6 {[%clk 0:02:30.2]} 19. Rad1 {[%clk
0:02:09.5]} 19... Qg4 {[%clk 0:02:07.5]} 20. Qc2 {[%clk 0:01:52.5]} 20... h3
{[%clk 0:02:01.6]} 21. g3 {[%clk 0:01:48.6]} 21... e6 {[%clk 0:01:56]} 22. Bb6
{[%clk 0:01:43]} 22... Bd6 {[%clk 0:01:35.8]} 23. Bxd8 {[%clk 0:01:34.5]} 23...
Bxg3 {[%clk 0:01:34.9]} 24. hxg3 {[%clk 0:01:29.3]} 24... Qxg3+ {[%clk
0:01:34.4]} 25. Kh1 {[%clk 0:01:28.5]} 25... Qg2+ {[%clk 0:01:34.6]} 26. Qxg2
{[%clk 0:01:24.6]} 26... hxg2+ {[%clk 0:01:35.5]} 27. Kg1 {[%clk 0:01:23.6]}
27... gxf1=Q+ {[%clk 0:01:36.4]} 28. Kxf1 {[%clk 0:01:22.4]} 28... Rxd8 {[%clk
0:01:34.8]} 29. Ke2 {[%clk 0:01:21.9]} 29... cxd5 {[%clk 0:01:32.8]} 30. cxd5
{[%clk 0:01:21.9]} 30... f5 {[%clk 0:01:25.9]} 31. exf5 {[%clk 0:01:20.7]} 31...
Rxd5 {[%clk 0:01:24.5]} 32. Rc1+ {[%clk 0:01:20.8]} 32... Kd7 {[%clk 0:01:23.9]}
33. fxe6+ {[%clk 0:01:21]} 33... fxe6 {[%clk 0:01:22.9]} 34. b4 {[%clk
0:01:20.5]} 34... Rd4 {[%clk 0:01:22]} 35. b5 {[%clk 0:01:20]} 35... axb5 {[%clk
0:01:20.9]} 36. Rc5 {[%clk 0:01:19.4]} 36... b4 {[%clk 0:01:18.9]} 37. Rb5
{[%clk 0:01:19]} 37... Kc7 {[%clk 0:01:15.2]} 38. Ke3 {[%clk 0:01:18.5]} 38...
Rd5 {[%clk 0:01:14.7]} 39. Rb6 {[%clk 0:01:17.8]} 39... e5 {[%clk 0:01:09.1]}
40. Rxb4 {[%clk 0:01:12.2]} 40... Rxa5 {[%clk 0:01:08]} 41. Ke4 {[%clk
0:01:11.8]} 41... Kb8 {[%clk 0:01:07.3]} 42. Rb1 {[%clk 0:01:07.7]} 42... Ka7
{[%clk 0:01:07.3]} 43. Kd3 {[%clk 0:01:02.5]} 43... Ra4 {[%clk 0:01:06.6]} 44.
Ke3 {[%clk 0:00:57.3]} 44... Ka6 {[%clk 0:01:05.7]} 45. Rb2 {[%clk 0:00:57]}
45... b5 {[%clk 0:01:05.2]} 46. Rb1 {[%clk 0:00:55.7]} 46... Ka5 {[%clk
0:01:05]} 47. Kd3 {[%clk 0:00:54.9]} 47... e4+ {[%clk 0:01:03.1]} 48. Ke3 {[%clk
0:00:54.8]} 48... Rc4 {[%clk 0:01:00.3]} 49. Ra1+ {[%clk 0:00:54.2]} 49... Kb6
{[%clk 0:00:58]} 50. Rb1 {[%clk 0:00:52]} 50... b4 {[%clk 0:00:57.8]} 51. Rh1
{[%clk 0:00:41.5]} 51... Kb5 {[%clk 0:00:57.7]} 52. Rh8 {[%clk 0:00:40.7]} 52...
b3 {[%clk 0:00:55.2]} 53. Rb8+ {[%clk 0:00:39.5]} 53... Ka4 {[%clk 0:00:54.9]}
54. Kd2 {[%clk 0:00:40.3]} 54... Ka3 {[%clk 0:00:51.6]} 0-1

[Event "*** Titled Tuesday Blitz"]
[Site "Chess.com"]
[Date "2020.05.05"]
[Round "4"]
[White "NemtsevIgor"]
[Black "korbul"]
[Result "0-1"]
[WhiteElo "2331"]
[BlackElo "2557"]
[TimeControl "180+1"]
[EndTime "10:40:44 PDT"]
[Termination "korbul won on time"]

1. d4 {[%clk 0:03:00.9]} 1... Nf6 {[%clk 0:02:58.8]} 2. Bf4 {[%clk 0:03:00.3]}
2... d6 {[%clk 0:02:58.7]} 3. Nf3 {[%clk 0:02:58.5]} 3... c6 {[%clk 0:02:59.6]}
4. e3 {[%clk 0:02:58.4]} 4... Nbd7 {[%clk 0:03:00.5]} 5. Be2 {[%clk 0:02:57]}
5... g6 {[%clk 0:03:01.4]} 6. O-O {[%clk 0:02:56.4]} 6... Bg7 {[%clk 0:03:02.3]}
7. c4 {[%clk 0:02:56.2]} 7... O-O {[%clk 0:03:03.2]} 8. Nc3 {[%clk 0:02:56.2]}
8... Qe8 {[%clk 0:03:03.7]} 9. h3 {[%clk 0:02:53.6]} 9... e5 {[%clk 0:03:03.4]}
10. Bh2 {[%clk 0:02:53.7]} 10... a5 {[%clk 0:03:02]} 11. c5 {[%clk 0:02:44.5]}
11... e4 {[%clk 0:03:01.2]} 12. Nd2 {[%clk 0:02:41.7]} 12... dxc5 {[%clk
0:03:00.2]} 13. dxc5 {[%clk 0:02:41.4]} 13... Nxc5 {[%clk 0:03:00]} 14. Bd6
{[%clk 0:02:40.6]} 14... Ne6 {[%clk 0:02:59]} 15. Bxf8 {[%clk 0:02:40.6]} 15...
Nxf8 {[%clk 0:02:58.5]} 16. Qc2 {[%clk 0:02:31]} 16... Bf5 {[%clk 0:02:58]} 17.
g4 {[%clk 0:02:28.6]} 17... Bd7 {[%clk 0:02:57.5]} 18. Ndxe4 {[%clk 0:02:24]}
18... h5 {[%clk 0:02:56.6]} 19. Nxf6+ {[%clk 0:02:22.6]} 19... Bxf6 {[%clk
0:02:56.3]} 20. Ne4 {[%clk 0:02:06.9]} 20... Be5 {[%clk 0:02:55]} 21. f4 {[%clk
0:02:02.5]} 21... Bg7 {[%clk 0:02:53.7]} 22. f5 {[%clk 0:01:43.8]} 22... hxg4
{[%clk 0:02:53.6]} 23. fxg6 {[%clk 0:01:36.9]} 23... Nxg6 {[%clk 0:02:51.7]} 24.
Bxg4 {[%clk 0:01:27.5]} 24... Bxg4 {[%clk 0:02:45.2]} 25. hxg4 {[%clk
0:01:27.4]} 25... Qe6 {[%clk 0:02:46.1]} 26. g5 {[%clk 0:01:04.7]} 26... Re8
{[%clk 0:02:43]} 27. Nf6+ {[%clk 0:01:00.4]} 27... Bxf6 {[%clk 0:02:42.3]} 28.
gxf6 {[%clk 0:00:52.2]} 28... Qxe3+ {[%clk 0:02:42.1]} 29. Qf2 {[%clk
0:00:50.1]} 29... Qg5+ {[%clk 0:02:41.8]} 30. Qg2 {[%clk 0:00:48.2]} 30... Qc5+
{[%clk 0:02:41]} 31. Kh1 {[%clk 0:00:39.3]} 31... Re5 {[%clk 0:02:35.7]} 32. Rf3
{[%clk 0:00:29.1]} 32... Qc4 {[%clk 0:02:24.6]} 33. Rd1 {[%clk 0:00:22.9]} 33...
Rh5+ {[%clk 0:02:14.3]} 34. Rh3 {[%clk 0:00:22.7]} 34... Rxh3+ {[%clk
0:02:13.8]} 35. Qxh3 {[%clk 0:00:23.1]} 35... Qe4+ {[%clk 0:02:13.9]} 36. Qg2
{[%clk 0:00:22.9]} 36... Qh4+ {[%clk 0:02:12.3]} 37. Qh2 {[%clk 0:00:20.6]}
37... Qxf6 {[%clk 0:02:09.9]} 38. Rg1 {[%clk 0:00:18.2]} 38... Kg7 {[%clk
0:02:04.4]} 39. Qg2 {[%clk 0:00:18.3]} 39... a4 {[%clk 0:02:02.3]} 40. a3 {[%clk
0:00:18.3]} 40... Qe5 {[%clk 0:02:01.2]} 41. Qh2 {[%clk 0:00:16.7]} 41... Qe4+
{[%clk 0:02:00]} 42. Qg2 {[%clk 0:00:17.1]} 42... Qd3 {[%clk 0:01:59]} 43. Qf2
{[%clk 0:00:16.5]} 43... Qe4+ {[%clk 0:01:55.9]} 44. Qg2 {[%clk 0:00:16.4]}
44... Qe5 {[%clk 0:01:54.6]} 45. Qf2 {[%clk 0:00:16]} 45... b5 {[%clk
0:01:52.6]} 46. Rf1 {[%clk 0:00:16.3]} 46... Qd5+ {[%clk 0:01:46.4]} 47. Qf3
{[%clk 0:00:16.1]} 47... Qe6 {[%clk 0:01:46.2]} 48. Qf5 {[%clk 0:00:15.8]} 48...
Qe7 {[%clk 0:01:42.8]} 49. Qf3 {[%clk 0:00:15.6]} 49... c5 {[%clk 0:01:40.2]}
50. Kg1 {[%clk 0:00:15.7]} 50... b4 {[%clk 0:01:39.1]} 51. axb4 {[%clk
0:00:15.6]} 51... cxb4 {[%clk 0:01:39.3]} 52. Qf5 {[%clk 0:00:15.8]} 52... a3
{[%clk 0:01:38.6]} 53. bxa3 {[%clk 0:00:16]} 53... bxa3 {[%clk 0:01:38.5]} 54.
Qd3 {[%clk 0:00:15.2]} 54... Qc5+ {[%clk 0:01:35.7]} 55. Kh1 {[%clk 0:00:14.3]}
55... a2 {[%clk 0:01:33.3]} 56. Qf3 {[%clk 0:00:11.1]} 56... Qa7 {[%clk
0:01:31.2]} 57. Qf6+ {[%clk 0:00:10.4]} 57... Kg8 {[%clk 0:01:31.3]} 58. Qd8+
{[%clk 0:00:10.4]} 58... Kh7 {[%clk 0:01:30.5]} 59. Qe8 {[%clk 0:00:07]} 59...
Qb7+ {[%clk 0:01:27.6]} 60. Kh2 {[%clk 0:00:06.4]} 60... Qb2+ {[%clk 0:01:26.9]}
61. Kh3 {[%clk 0:00:05.9]} 61... Qd4 {[%clk 0:01:26.5]} 62. Rxf7+ {[%clk
0:00:05.1]} 62... Kh6 {[%clk 0:01:26.8]} 63. Rf5 {[%clk 0:00:02.3]} 63... a1=Q
{[%clk 0:01:21.1]} 0-1

[Event "*** Titled Tuesday Blitz"]
[Site "Chess.com"]
[Date "2020.05.05"]
[Round "4"]
[White "wanyaland"]
[Black "MightyGMpretender"]
[Result "0-1"]
[WhiteElo "2270"]
[BlackElo "2579"]
[TimeControl "180+1"]
[EndTime "10:40:45 PDT"]
[Termination "MightyGMpretender won by resignation"]

1. d4 {[%clk 0:03:00.9]} 1... Nf6 {[%clk 0:02:59.9]} 2. c4 {[%clk 0:03:00.4]}
2... e6 {[%clk 0:03:00.4]} 3. Nf3 {[%clk 0:02:59.5]} 3... d5 {[%clk 0:03:00.8]}
4. g3 {[%clk 0:02:59.7]} 4... dxc4 {[%clk 0:02:52.5]} 5. Bg2 {[%clk 0:02:59.6]}
5... Bb4+ {[%clk 0:02:52.7]} 6. Bd2 {[%clk 0:02:56.4]} 6... a5 {[%clk
0:02:50.3]} 7. a3 {[%clk 0:02:54.8]} 7... Bxd2+ {[%clk 0:02:35.7]} 8. Nbxd2
{[%clk 0:02:55.7]} 8... b5 {[%clk 0:02:20]} 9. O-O {[%clk 0:02:54.2]} 9... c6
{[%clk 0:01:59.5]} 10. Qc2 {[%clk 0:02:41.1]} 10... a4 {[%clk 0:01:54.7]} 11.
Rad1 {[%clk 0:02:36.2]} 11... O-O {[%clk 0:01:49]} 12. e4 {[%clk 0:02:35.1]}
12... Bb7 {[%clk 0:01:46.4]} 13. e5 {[%clk 0:02:30.6]} 13... Nd5 {[%clk
0:01:45.5]} 14. Ne4 {[%clk 0:02:31]} 14... Nd7 {[%clk 0:01:43.4]} 15. Rfe1
{[%clk 0:02:28.3]} 15... Ba6 {[%clk 0:01:42]} 16. Neg5 {[%clk 0:02:19.3]} 16...
g6 {[%clk 0:01:38.8]} 17. Qe4 {[%clk 0:02:16]} 17... h6 {[%clk 0:01:35.1]} 18.
Nxe6 {[%clk 0:02:11.6]} 18... Qe7 {[%clk 0:01:14.4]} 19. Nxf8 {[%clk 0:02:07.4]}
19... Nxf8 {[%clk 0:01:15.3]} 20. h4 {[%clk 0:02:02.2]} 20... Bc8 {[%clk
0:01:14.9]} 21. Qe2 {[%clk 0:01:41.7]} 21... Bf5 {[%clk 0:01:12.6]} 22. Qd2
{[%clk 0:01:41.8]} 22... Kg7 {[%clk 0:01:04.2]} 23. h5 {[%clk 0:01:40.2]} 23...
g5 {[%clk 0:01:02.4]} 24. Nh2 {[%clk 0:01:40.1]} 24... Ne6 {[%clk 0:00:57.6]}
25. Be4 {[%clk 0:01:28.8]} 25... Bxe4 {[%clk 0:00:57.3]} 26. Rxe4 {[%clk
0:01:27.8]} 26... c3 {[%clk 0:00:58.2]} 27. bxc3 {[%clk 0:01:20]} 27... Qxa3
{[%clk 0:00:58.7]} 28. Rc1 {[%clk 0:01:20.4]} 28... Qe7 {[%clk 0:00:43.7]} 29.
Kh1 {[%clk 0:01:00.7]} 29... a3 {[%clk 0:00:42]} 30. f4 {[%clk 0:01:00.4]} 30...
gxf4 {[%clk 0:00:35.9]} 31. gxf4 {[%clk 0:01:01.3]} 31... Qh4 {[%clk 0:00:35.9]}
32. Qg2+ {[%clk 0:00:55.6]} 32... Kh7 {[%clk 0:00:30.1]} 33. f5 {[%clk 0:00:54]}
33... Qg5 {[%clk 0:00:30.5]} 34. Ree1 {[%clk 0:00:41.3]} 34... Nef4 {[%clk
0:00:26.9]} 35. Qe4 {[%clk 0:00:30.1]} 35... Nh3 {[%clk 0:00:17.5]} 36. f6+
{[%clk 0:00:27.8]} 36... Kh8 {[%clk 0:00:17.5]} 37. Re2 {[%clk 0:00:27.9]} 37...
a2 {[%clk 0:00:16.7]} 38. Rg2 {[%clk 0:00:19.8]} 38... Qxc1+ {[%clk 0:00:16]}
0-1

[Event "*** Titled Tuesday Blitz"]
[Site "Chess.com"]
[Date "2020.05.05"]
[Round "4"]
[White "oskariot"]
[Black "Anastasia_Nesytova"]
[Result "1-0"]
[WhiteElo "2615"]
[BlackElo "2388"]
[TimeControl "180+1"]
[EndTime "10:40:46 PDT"]
[Termination "oskariot won by resignation"]

1. e4 {[%clk 0:03:00.9]} 1... c6 {[%clk 0:02:59.9]} 2. d4 {[%clk 0:03:00.4]}
2... d5 {[%clk 0:03:00.4]} 3. Nd2 {[%clk 0:03:01]} 3... dxe4 {[%clk 0:03:00.3]}
4. Nxe4 {[%clk 0:03:01.9]} 4... Bf5 {[%clk 0:03:00.9]} 5. Ng3 {[%clk 0:03:01.5]}
5... Bg6 {[%clk 0:03:01.3]} 6. c3 {[%clk 0:03:02.4]} 6... Nf6 {[%clk 0:03:00.5]}
7. Nh3 {[%clk 0:03:02.1]} 7... Nbd7 {[%clk 0:02:59.6]} 8. Bc4 {[%clk 0:03:01.7]}
8... Qc7 {[%clk 0:02:56.7]} 9. O-O {[%clk 0:02:51.2]} 9... e6 {[%clk 0:02:54.9]}
10. Nf4 {[%clk 0:02:51.3]} 10... Bd6 {[%clk 0:02:54.6]} 11. Qf3 {[%clk
0:02:51.9]} 11... e5 {[%clk 0:02:45.6]} 12. Nxg6 {[%clk 0:02:49.4]} 12... hxg6
{[%clk 0:02:44.9]} 13. Bg5 {[%clk 0:02:49.6]} 13... O-O-O {[%clk 0:02:16.4]} 14.
Bxf7 {[%clk 0:02:25.6]} 14... Rdf8 {[%clk 0:02:14.2]} 15. Bxg6 {[%clk
0:01:54.8]} 15... Nh7 {[%clk 0:01:52.6]} 16. Qg4 {[%clk 0:01:50.5]} 16... Nxg5
{[%clk 0:01:51.6]} 17. Qxg5 {[%clk 0:01:51.4]} 17... exd4 {[%clk 0:01:51.6]} 18.
cxd4 {[%clk 0:01:46.4]} 18... Rf4 {[%clk 0:01:48.6]} 19. Rad1 {[%clk 0:01:02.7]}
19... Rfh4 {[%clk 0:01:38.3]} 20. h3 {[%clk 0:00:58.1]} 20... Bf4 {[%clk
0:01:37.7]} 21. Qe7 {[%clk 0:00:52]} 21... Bxg3 {[%clk 0:01:19.1]} 22. fxg3
{[%clk 0:00:50.9]} 22... Rxh3 {[%clk 0:01:19.2]} 23. Bf5 {[%clk 0:00:22.1]}
23... Rxg3 {[%clk 0:00:59.3]} 24. Bxd7+ {[%clk 0:00:13.1]} 24... Qxd7 {[%clk
0:00:59.2]} 25. Qxd7+ {[%clk 0:00:12.5]} 25... Kxd7 {[%clk 0:00:59.8]} 26. Rf7+
{[%clk 0:00:13.4]} 26... Kc8 {[%clk 0:00:36.8]} 27. Re1 {[%clk 0:00:13.5]} 27...
Rd3 {[%clk 0:00:15]} 28. Ree7 {[%clk 0:00:11.7]} 28... Rxd4 {[%clk 0:00:14.9]}
29. Rc7+ {[%clk 0:00:11.1]} 29... Kd8 {[%clk 0:00:12.9]} 30. Rxb7 {[%clk
0:00:12]} 30... Rd1+ {[%clk 0:00:11.7]} 31. Kf2 {[%clk 0:00:11.9]} 31... Ke8
{[%clk 0:00:10.1]} 32. Rxg7 {[%clk 0:00:08.7]} 32... Rd2+ {[%clk 0:00:09.1]} 33.
Ke3 {[%clk 0:00:07.7]} 33... a5 {[%clk 0:00:08.1]} 34. Kxd2 {[%clk 0:00:05.1]}
1-0